[Event "XIX Najdorf Memorial 2019"]
[Site "Warsaw"]
[Date "2019.07.09"]
[Round "4.10"]
[White "Janik, Igor"]
[Black "Romanishin, Oleg M"]
[Result "1/2-1/2"]
[ECO "A40"]
[WhiteElo "2495"]
[BlackElo "2443"]
[Annotator "ChessBase"]
[PlyCount "54"]
[EventDate "2019.07.06"]
[EventType "swiss"]
[EventCountry "POL"]
[SourceTitle "playchess.com"]
[Source "ChessBase"]
[SourceQuality "1"]
[TimeControl "40/5400+30:1800+30"]

1. d4 {[%emt 0:00:00]} Nf6 {[%emt 0:00:00]} 2. c4 {[%emt 0:00:00]} e6 {[%emt 0:00:00]} 3. g3 {[%emt 0:00:05]} Bb4+ {[%emt 0:00:39]} 4. Nd2 {[%emt 0:00:08]} c5 {[%emt 0:08:22]} 5. Ngf3 {[%emt 0:00:14]} cxd4 {[%emt 0:00:28]} 6. Nxd4 {[%emt 0:00:10]} Nc6 {[%emt 0:00:08]} 7. Nc2 {[%emt 0:00:15]} Be7 {[%emt 0:01:53]} 8. Bg2 {[%emt 0:00:10]} d5 {[%emt 0:01:40]} 9. O-O {[%emt 0:00:41]} O-O {[%emt 0:03:26]} 10. a3 {[%emt 0:06:46]} e5 {[%emt 0:08:05]} 11. b4 {[%emt 0:01:39]} Be6 {[%emt 0:01:08]} 12. Bb2 {[%emt 0:04:09]} dxc4 {[%emt 0:02:24]} 13. Ne3 {[%emt 0:01:28]} Qc7 {[%emt 0:14:09]} 14. Nexc4 {[%emt 0:00:54]} b5 {[%emt 0:11:38]} 15. Bxc6 {[%emt 0:08:56]} Qxc6 {[%emt 0:02:13]} 16. Nxe5 {[%emt 0:00:37]} Qb7 {[%emt 0:00:08]} 17. Ndf3 {[%emt 0:01:02]} a5 {[%emt 0:08:35]} 18. bxa5 {[%emt 0:07:04]} Rxa5 {[%emt 0:00:31]} 19. Qd2 {[%emt 0:04:28]} Ra6 {[%emt 0:00:11]} 20. Rfc1 {[%emt 0:05:57]} h6 {[%emt 0:03:19]} 21. Nd4 {[%emt 0:05:57]} Ne4 {[%emt 0:07:46]} 22. Qe3 {[%emt 0:06:30]} Bf6 {[%emt 0:02:57]} 23. Nd3 {[%emt 0:06:26]} Bc4 {[%emt 0:04:23]} 24. f3 {[%emt 0:06:45]} Bxd3 {[%emt 0:00:05]} 25. Qxd3 {[%emt 0:00:30]} Nd6 {[%emt 0:00:05]} 26. Rab1 {[%emt 0:01:10]} Nc4 {[%emt 0:00:19]} 27. Rd1 {[%emt 0:04:34]} Rd8 {[%emt 0:02:38]} 1/2-1/2

[Event "XIX Najdorf Memorial 2019"]
[Site "Warsaw"]
[Date "2019.07.09"]
[Round "4.10"]
[White "Budrewicz, Krzysztof"]
[Black "Mosesov, Danylo"]
[Result "0-1"]
[ECO "A50"]
[WhiteElo "2188"]
[BlackElo "2353"]
[Annotator "NA"]
[PlyCount "84"]
[EventDate "2019.07.06"]
[EventType "swiss"]
[EventCountry "POL"]
[SourceTitle "playchess.com"]
[Source "ChessBase"]
[SourceQuality "1"]
[TimeControl "40/5400+30:1800+30"]

1. d4 {[%emt 0:00:00]} Nf6 {[%emt 0:00:00]} 2. c4 {[%emt 0:00:00]} b6 {[%emt 0:00:00]} 3. f3 {[%emt 0:00:55]} Nc6 {[%emt 0:00:14]} 4. Nc3 {[%emt 0:00:10]} e5 {[%emt 0:02:00]} 5. d5 {[%emt 0:00:21]} Ne7 {[%emt 0:00:18]} 6. e4 {[%emt 0:00:07]} Ng6 {[%emt 0:00:03]} 7. Be3 {[%emt 0:00:06]} Bc5 {[%emt 0:00:40]} 8. Qd2 {[%emt 0:00:14]} O-O {[%emt 0:01:58]} 9. Nge2 {[%emt 0:03:25]} Bxe3 {[%emt 0:10:14]} 10. Qxe3 {[%emt 0:00:09]} d6 {[%emt 0:00:01]} 11. O-O-O {[%emt 0:04:10]} Ne8 {[%emt 0:14:41]} 12. Rd2 {[%emt 0:11:23]} f5 {[%emt 0:04:28]} 13. exf5 {[%emt 0:00:51]} Bxf5 {[%emt 0:00:05]} 14. Ng3 {[%emt 0:00:21]} Nh4 {[%emt 0:03:15]} 15. f4 {[%emt 0:08:43]} Nf6 {[%emt 0:10:45]} 16. Nxf5 {[%emt 0:04:06]} Nxf5 {[%emt 0:00:04]} 17. Qh3 {[%emt 0:00:04]} Nd7 {[%emt 0:02:04]} 18. Bd3 {[%emt 0:00:42]} g6 {[%emt 0:00:55]} 19. g3 {[%emt 0:21:52]} exf4 {[%emt 0:06:03]} 20. gxf4 {[%emt 0:00:12]} Nc5 {[%emt 0:00:16]} 21. Bc2 {[%emt 0:00:33]} Qf6 {[%emt 0:07:25]} 22. Re1 {[%emt 0:08:18]} Qh4 {[%emt 0:14:21]} 23. Qxh4 {[%emt 0:11:19]} Nxh4 {[%emt 0:00:29]} 24. Rf2 {[%emt 0:01:43]} Rf7 {[%emt 0:04:39]} 25. b4 {[%emt 0:02:08]} Nd7 {[%emt 0:00:09]} 26. Nb5 {[%emt 0:01:04]} Nf6 {[%emt 0:00:22]} 27. f5 {[%emt 0:01:42]} Ng4 {[%emt 0:02:57]} 28. Rfe2 {[%emt 0:03:08]} gxf5 {[%emt 0:01:17]} 29. Nd4 {[%emt 0:05:45]} Ne5 {[%emt 0:01:08]} 30. Rg1+ {[%emt 0:00:38]} Kh8 {[%emt 0:00:30]} 31. Rg3 {[%emt 0:01:26]} Rg8 {[%emt 0:01:51]} 32. c5 {[%emt 0:01:33]} bxc5 {[%emt 0:01:49]} 33. bxc5 {[%emt 0:00:05]} f4 {[%emt 0:00:23]} 34. Rh3 {[%emt 0:04:46]} Rg4 {[%emt 0:04:33]} 35. Ne6 {[%emt 0:02:14]} f3 {[%emt 0:01:28]} 36. Rf2 {[%emt 0:00:04]} Rg2 {[%emt 0:03:06]} 37. cxd6 {[%emt 0:00:18]} cxd6 {[%emt 0:00:27]} 38. Rf1 {[%emt 0:00:25]} f2 {[%emt 0:00:42]} 39. Kd2 {[%emt 0:01:18]} Rg1 {[%emt 0:01:41]} 40. Ke2 {[%emt 0:00:00]} Rxf1 {[%emt 0:00:00]} 41. Kxf1 {[%emt 0:00:34]} Nc4 {[%emt 0:01:35]} 42. Rd3 {[%emt 0:01:35]} Ng2 {[%emt 0:00:32]} 0-1

[Event "XIX Najdorf Memorial 2019"]
[Site "Warsaw"]
[Date "2019.07.09"]
[Round "4.11"]
[White "Tomaszewski, Kacper"]
[Black "Kubicka, Anna"]
[Result "1-0"]
[ECO "E20"]
[WhiteElo "2346"]
[BlackElo "2202"]
[Annotator "NA"]
[PlyCount "116"]
[EventDate "2019.07.06"]
[EventType "swiss"]
[EventCountry "POL"]
[SourceTitle "playchess.com"]
[Source "ChessBase"]
[SourceQuality "1"]
[TimeControl "40/5400+30:1800+30"]

1. d4 {[%emt 0:00:00]} Nf6 {[%emt 0:02:29]} 2. c4 {[%emt 0:00:00]} e6 {[%emt 0:00:25]} 3. Nc3 {[%emt 0:00:00]} Bb4 {[%emt 0:00:32]} 4. Bf4 {[%emt 0:00:00]} O-O {[%emt 0:00:55]} 5. Qb3 {[%emt 0:00:00]} a5 {[%emt 0:11:03]} 6. e3 {[%emt 0:00:45]} b6 {[%emt 0:01:48]} 7. a3 {[%emt 0:02:23]} Bxc3+ {[%emt 0:03:54]} 8. Qxc3 {[%emt 0:01:10]} d6 {[%emt 0:00:24]} 9. Bd3 {[%emt 0:04:39]} Bb7 {[%emt 0:00:12]} 10. Nf3 {[%emt 0:13:23]} Nbd7 {[%emt 0:01:20]} 11. O-O-O {[%emt 0:06:47]} d5 {[%emt 0:08:19]} 12. Kb1 {[%emt 0:08:36]} Qe7 {[%emt 0:05:08]} 13. Bg5 {[%emt 0:00:38]} dxc4 {[%emt 0:03:14]} 14. Qxc4 {[%emt 0:02:22]} Rfc8 {[%emt 0:11:55]} 15. Ne5 {[%emt 0:05:43]} Qd6 {[%emt 0:03:57]} 16. Bf4 {[%emt 0:06:15]} Qf8 {[%emt 0:06:43]} 17. Qc2 {[%emt 0:01:58]} h6 {[%emt 0:00:18]} 18. Nxd7 {[%emt 0:14:35]} Nxd7 {[%emt 0:00:10]} 19. Be4 {[%emt 0:00:05]} Bxe4 {[%emt 0:02:13]} 20. Qxe4 {[%emt 0:00:26]} c5 {[%emt 0:09:51]} 21. Qb7 {[%emt 0:00:26]} Qe8 {[%emt 0:03:15]} 22. Bd6 {[%emt 0:00:45]} c4 {[%emt 0:02:39]} 23. Rc1 {[%emt 0:02:39]} Nf6 {[%emt 0:01:53]} 24. Be5 {[%emt 0:00:52]} Ng4 {[%emt 0:02:44]} 25. Bg3 {[%emt 0:02:14]} b5 {[%emt 0:05:40]} 26. Rc2 {[%emt 0:01:20]} Nf6 {[%emt 0:03:07]} 27. Rhc1 {[%emt 0:01:01]} Qc6 {[%emt 0:06:28]} 28. Qxc6 {[%emt 0:00:22]} Rxc6 {[%emt 0:00:01]} 29. a4 {[%emt 0:00:13]} Ne4 {[%emt 0:01:54]} 30. axb5 {[%emt 0:00:25]} Rb6 {[%emt 0:00:03]} 31. f3 {[%emt 0:00:38]} Nxg3 {[%emt 0:00:19]} 32. hxg3 {[%emt 0:00:05]} Rxb5 {[%emt 0:00:04]} 33. Rxc4 {[%emt 0:00:09]} a4 {[%emt 0:01:03]} 34. Rc8+ {[%emt 0:00:40]} Rxc8 {[%emt 0:00:13]} 35. Rxc8+ {[%emt 0:00:04]} Kh7 {[%emt 0:00:01]} 36. Rc5 {[%emt 0:01:26]} Rb3 {[%emt 0:00:48]} 37. Rc3 {[%emt 0:00:05]} Rb4 {[%emt 0:00:39]} 38. Ka2 {[%emt 0:02:06]} Kg6 {[%emt 0:00:05]} 39. g4 {[%emt 0:00:34]} Kf6 {[%emt 0:00:28]} 40. Ka3 {[%emt 0:00:00]} Rb5 {[%emt 0:00:00]} 41. e4 {[%emt 0:00:56]} g6 {[%emt 0:05:38]} 42. Rc2 {[%emt 0:03:29]} Rb3+ {[%emt 0:02:10]} 43. Kxa4 {[%emt 0:01:43]} Rd3 {[%emt 0:00:02]} 44. b4 {[%emt 0:00:52]} Rxd4 {[%emt 0:00:02]} 45. Ka5 {[%emt 0:00:06]} Ke7 {[%emt 0:02:39]} 46. b5 {[%emt 0:00:14]} Rd1 {[%emt 0:01:24]} 47. Kb6 {[%emt 0:00:31]} Kd8 {[%emt 0:01:29]} 48. Ka6 {[%emt 0:00:55]} f5 {[%emt 0:00:25]} 49. gxf5 {[%emt 0:00:26]} gxf5 {[%emt 0:00:05]} 50. exf5 {[%emt 0:00:05]} exf5 {[%emt 0:00:03]} 51. b6 {[%emt 0:00:14]} f4 {[%emt 0:00:30]} 52. b7 {[%emt 0:00:35]} Ra1+ {[%emt 0:00:28]} 53. Kb6 {[%emt 0:00:06]} Rb1+ {[%emt 0:00:19]} 54. Ka7 {[%emt 0:00:28]} Ra1+ {[%emt 0:00:18]} 55. Kb8 {[%emt 0:00:06]} Re1 {[%emt 0:01:11]} 56. Rd2+ {[%emt 0:00:32]} Ke7 {[%emt 0:00:05]} 57. Ra2 {[%emt 0:00:11]} Kd6 {[%emt 0:03:26]} 58. Ka8 {[%emt 0:00:45]} Kd5 1-0

[Event "XIX Najdorf Memorial 2019"]
[Site "Warsaw"]
[Date "2019.07.09"]
[Round "4.11"]
[White "Bebel, Arkadiusz"]
[Black "Bernadskiy, Vitaliy"]
[Result "0-1"]
[ECO "C47"]
[WhiteElo "2290"]
[BlackElo "2594"]
[Annotator "ChessBase"]
[PlyCount "84"]
[EventDate "2019.07.06"]
[EventType "swiss"]
[EventCountry "POL"]
[SourceTitle "playchess.com"]
[Source "ChessBase"]
[SourceQuality "1"]
[TimeControl "40/5400+30:1800+30"]

1. e4 {[%emt 0:00:00]} e5 {[%emt 0:00:00]} 2. Nf3 {[%emt 0:00:00]} Nc6 {[%emt 0:00:00]} 3. Nc3 {[%emt 0:00:00]} Nf6 {[%emt 0:00:27]} 4. d4 {[%emt 0:00:00]} exd4 {[%emt 0:00:04]} 5. Nd5 {[%emt 0:00:00]} Be7 {[%emt 0:04:21]} 6. Nxd4 {[%emt 0:00:41]} Nxd4 {[%emt 0:05:32]} 7. Qxd4 {[%emt 0:00:09]} O-O {[%emt 0:00:20]} 8. Be2 {[%emt 0:07:15]} Nxd5 {[%emt 0:03:05]} 9. exd5 {[%emt 0:00:07]} Bf6 {[%emt 0:00:30]} 10. Qd1 {[%emt 0:00:10]} d6 {[%emt 0:01:17]} 11. O-O {[%emt 0:00:38]} Bf5 {[%emt 0:01:49]} 12. c3 {[%emt 0:05:40]} Re8 {[%emt 0:01:49]} 13. Be3 {[%emt 0:16:47]} Be4 {[%emt 0:08:34]} 14. Bf3 {[%emt 0:10:25]} Qd7 {[%emt 0:01:39]} 15. Bxe4 {[%emt 0:12:21]} Rxe4 {[%emt 0:00:05]} 16. Qd3 {[%emt 0:00:06]} Rae8 {[%emt 0:00:42]} 17. Rad1 {[%emt 0:00:36]} Qa4 {[%emt 0:07:19]} 18. Qb1 {[%emt 0:04:42]} Qc4 {[%emt 0:04:35]} 19. Rd3 {[%emt 0:00:31]} h6 {[%emt 0:03:55]} 20. b3 {[%emt 0:02:36]} Qb5 {[%emt 0:00:06]} 21. c4 {[%emt 0:00:15]} Qd7 {[%emt 0:00:38]} 22. a4 {[%emt 0:01:22]} a5 {[%emt 0:03:57]} 23. Qd1 {[%emt 0:02:41]} Qf5 {[%emt 0:00:52]} 24. Bd2 {[%emt 0:04:32]} b6 {[%emt 0:01:12]} 25. Rf3 {[%emt 0:00:53]} Qh7 {[%emt 0:01:25]} 26. Be3 {[%emt 0:02:34]} Be5 {[%emt 0:02:37]} 27. h3 {[%emt 0:05:13]} f5 {[%emt 0:00:09]} 28. Qd3 {[%emt 0:01:44]} g5 {[%emt 0:01:18]} 29. Bc1 {[%emt 0:03:51]} Bd4 {[%emt 0:07:35]} 30. Qd2 {[%emt 0:01:56]} f4 {[%emt 0:01:17]} 31. Bb2 {[%emt 0:01:11]} Bxb2 {[%emt 0:03:38]} 32. Qxb2 {[%emt 0:00:01]} Re1 {[%emt 0:00:21]} 33. Rxe1 {[%emt 0:02:37]} Rxe1+ {[%emt 0:00:04]} 34. Kh2 {[%emt 0:00:05]} Qf5 {[%emt 0:02:33]} 35. g3 {[%emt 0:04:16]} h5 {[%emt 0:03:39]} 36. Kg2 {[%emt 0:03:33]} g4 {[%emt 0:07:08]} 37. Rxf4 {[%emt 0:00:26]} Qd3 {[%emt 0:00:08]} 38. Kh2 {[%emt 0:03:12]} gxh3 {[%emt 0:03:25]} 39. Kxh3 {[%emt 0:01:19]} Qf1+ {[%emt 0:00:03]} 40. Kh4 {[%emt 0:00:00]} Re5 {[%emt 0:00:00]} 41. g4 {[%emt 0:02:20]} Qh1+ {[%emt 0:00:50]} 42. Kg3 {[%emt 0:00:01]} h4# 0-1

[Event "XIX Najdorf Memorial 2019"]
[Site "Warsaw"]
[Date "2019.07.09"]
[Round "4.12"]
[White "Kowalski, Igor"]
[Black "Efimenko, Zahar"]
[Result "1-0"]
[ECO "A47"]
[WhiteElo "2320"]
[BlackElo "2631"]
[Annotator "RC"]
[PlyCount "95"]
[EventDate "2019.07.06"]
[EventType "swiss"]
[EventCountry "POL"]
[SourceTitle "playchess.com"]
[Source "ChessBase"]
[SourceQuality "1"]
[TimeControl "40/5400+30:1800+30"]

1. d4 {[%emt 0:00:00]} b6 {[%emt 0:00:11]} 2. Nf3 {[%emt 0:02:24]} Bb7 {[%emt 0:04:30]} 3. g3 {[%emt 0:00:15]} Nf6 {[%emt 0:01:58]} 4. Bg2 {[%emt 0:00:06]} c5 {[%emt 0:02:45]} 5. dxc5 {[%emt 0:03:45]} bxc5 {[%emt 0:00:06]} 6. O-O {[%emt 0:00:06]} g6 {[%emt 0:02:56]} 7. b3 {[%emt 0:01:12]} Bg7 {[%emt 0:01:25]} 8. Bb2 {[%emt 0:00:05]} O-O {[%emt 0:01:24]} 9. c4 {[%emt 0:00:58]} d6 {[%emt 0:01:05]} 10. Nc3 {[%emt 0:00:53]} Nbd7 {[%emt 0:00:31]} 11. Qc2 {[%emt 0:00:50]} a5 {[%emt 0:05:16]} 12. Rad1 {[%emt 0:01:17]} Bc6 {[%emt 0:03:50]} 13. Nh4 {[%emt 0:09:56]} Qc8 {[%emt 0:01:51]} 14. a4 {[%emt 0:08:01]} Ne5 {[%emt 0:04:44]} 15. Nb5 {[%emt 0:08:25]} Bxg2 {[%emt 0:05:07]} 16. Nxg2 {[%emt 0:00:06]} Bh6 {[%emt 0:12:29]} 17. Bxe5 {[%emt 0:03:44]} dxe5 {[%emt 0:02:34]} 18. e4 {[%emt 0:06:55]} e6 {[%emt 0:03:31]} 19. f3 {[%emt 0:07:13]} Nd7 {[%emt 0:03:54]} 20. Qd3 {[%emt 0:19:20]} Nb8 {[%emt 0:02:45]} 21. Qd6 {[%emt 0:01:08]} Bg7 {[%emt 0:01:09]} 22. Ne3 {[%emt 0:03:18]} Ra6 {[%emt 0:03:39]} 23. Qe7 {[%emt 0:01:22]} Re8 {[%emt 0:07:53]} 24. Qh4 {[%emt 0:01:34]} Rf8 {[%emt 0:06:06]} 25. f4 {[%emt 0:03:40]} exf4 {[%emt 0:01:18]} 26. gxf4 {[%emt 0:00:04]} Nc6 {[%emt 0:02:07]} 27. f5 {[%emt 0:05:55]} exf5 {[%emt 0:03:07]} 28. exf5 {[%emt 0:00:27]} f6 {[%emt 0:09:59]} 29. Nd5 {[%emt 0:01:34]} g5 {[%emt 0:02:01]} 30. Qh5 {[%emt 0:00:33]} Kh8 {[%emt 0:01:09]} 31. Ndc7 {[%emt 0:01:43]} Ne5 {[%emt 0:01:34]} 32. Nxa6 {[%emt 0:00:24]} Qxa6 {[%emt 0:00:04]} 33. Qe2 {[%emt 0:04:39]} g4 {[%emt 0:00:30]} 34. Qe4 {[%emt 0:01:26]} Bh6 {[%emt 0:01:26]} 35. Kh1 {[%emt 0:02:58]} Bg5 {[%emt 0:01:49]} 36. Nc7 {[%emt 0:00:39]} Qc8 {[%emt 0:00:37]} 37. Ne6 {[%emt 0:00:05]} Rg8 {[%emt 0:00:09]} 38. Rd5 {[%emt 0:00:33]} Qb8 {[%emt 0:00:41]} 39. Rxe5 {[%emt 0:01:12]} fxe5 {[%emt 0:00:37]} 40. f6 {[%emt 0:00:00]} Bh6 {[%emt 0:00:00]} 41. f7 {[%emt 0:00:11]} Rc8 {[%emt 0:01:07]} 42. f8=R+ {[%emt 0:01:18]} Rxf8 {[%emt 0:01:08]} 43. Nxf8 {[%emt 0:00:04]} Bxf8 {[%emt 0:00:03]} 44. Rf7 {[%emt 0:01:14]} Bg7 {[%emt 0:00:13]} 45. Qxg4 {[%emt 0:00:06]} Qa8+ {[%emt 0:01:59]} 46. Qg2 {[%emt 0:00:19]} Qg8 {[%emt 0:00:05]} 47. Ra7 {[%emt 0:00:04]} e4 {[%emt 0:01:10]} 48. Qxe4 {[%emt 0:00:13]} 1-0

[Event "XIX Najdorf Memorial 2019"]
[Site "Warsaw"]
[Date "2019.07.09"]
[Round "4.12"]
[White "Harazinska, Magdalena"]
[Black "Oglaza, Oskar"]
[Result "1/2-1/2"]
[ECO "A57"]
[WhiteElo "2004"]
[BlackElo "2345"]
[Annotator "NA"]
[PlyCount "120"]
[EventDate "2019.07.06"]
[EventType "swiss"]
[EventCountry "POL"]
[SourceTitle "playchess.com"]
[Source "ChessBase"]
[SourceQuality "1"]
[TimeControl "40/5400+30:1800+30"]

1. d4 {[%emt 0:00:00]} Nf6 {[%emt 0:00:00]} 2. c4 {[%emt 0:00:00]} c5 {[%emt 0:00:00]} 3. d5 {[%emt 0:00:00]} b5 {[%emt 0:00:00]} 4. Qc2 {[%emt 0:00:23]} bxc4 {[%emt 0:00:00]} 5. e4 {[%emt 0:00:19]} d6 {[%emt 0:00:00]} 6. Bxc4 {[%emt 0:00:35]} g6 {[%emt 0:00:09]} 7. f4 {[%emt 0:09:42]} Bg7 {[%emt 0:09:52]} 8. Nf3 {[%emt 0:01:30]} O-O {[%emt 0:03:11]} 9. O-O {[%emt 0:02:12]} Nfd7 {[%emt 0:00:25]} 10. Nc3 {[%emt 0:09:53]} Ba6 {[%emt 0:19:32]} 11. b3 {[%emt 0:12:36]} Nb6 {[%emt 0:07:31]} 12. Bxa6 {[%emt 0:04:10]} Nxa6 {[%emt 0:00:04]} 13. Bb2 {[%emt 0:00:09]} c4 {[%emt 0:03:49]} 14. Nb5 {[%emt 0:05:54]} Bxb2 {[%emt 0:12:59]} 15. Qxb2 {[%emt 0:00:07]} Qd7 {[%emt 0:00:28]} 16. Nbd4 {[%emt 0:04:21]} Nc7 {[%emt 0:14:50]} 17. f5 {[%emt 0:05:33]} e5 {[%emt 0:06:14]} 18. dxe6 {[%emt 0:13:31]} fxe6 {[%emt 0:00:15]} 19. Ng5 {[%emt 0:05:05]} e5 {[%emt 0:00:09]} 20. Nde6 {[%emt 0:00:40]} Nxe6 {[%emt 0:02:47]} 21. Nxe6 {[%emt 0:02:55]} Rf6 {[%emt 0:01:11]} 22. Rf3 {[%emt 0:03:47]} Kh8 {[%emt 0:03:21]} 23. Raf1 {[%emt 0:04:38]} gxf5 {[%emt 0:00:28]} 24. exf5 {[%emt 0:00:12]} Rg8 {[%emt 0:00:13]} 25. Qf2 {[%emt 0:07:07]} Qf7 {[%emt 0:05:36]} 26. Qh4 {[%emt 0:01:51]} cxb3 {[%emt 0:04:54]} 27. axb3 {[%emt 0:00:18]} Nd5 {[%emt 0:03:02]} 28. Ng5 {[%emt 0:01:01]} Qg7 {[%emt 0:00:04]} 29. Rg3 {[%emt 0:00:36]} Nf4 {[%emt 0:00:04]} 30. Nxh7 {[%emt 0:03:02]} Rh6 {[%emt 0:00:02]} 31. Rxg7 {[%emt 0:01:30]} Rxh4 {[%emt 0:00:03]} 32. Rxg8+ {[%emt 0:00:49]} Kxg8 {[%emt 0:00:03]} 33. Ng5 {[%emt 0:00:44]} Rg4 {[%emt 0:00:08]} 34. Ne6 {[%emt 0:00:48]} Rxg2+ {[%emt 0:00:32]} 35. Kh1 {[%emt 0:00:03]} Rb2 {[%emt 0:04:13]} 36. Nxf4 {[%emt 0:00:16]} exf4 {[%emt 0:00:02]} 37. Rxf4 {[%emt 0:00:06]} Rxb3 {[%emt 0:00:04]} 38. Ra4 {[%emt 0:00:06]} Kf7 {[%emt 0:01:30]} 39. Rxa7+ {[%emt 0:00:37]} Kf6 {[%emt 0:00:04]} 40. Rd7 {[%emt 0:00:00]} Rd3 {[%emt 0:00:00]} 41. Kg2 {[%emt 0:02:38]} Kxf5 {[%emt 0:01:06]} 42. Kf2 {[%emt 0:00:52]} Ke5 {[%emt 0:00:11]} 43. h4 {[%emt 0:00:49]} Rh3 {[%emt 0:00:09]} 44. Re7+ {[%emt 0:01:15]} Kf4 {[%emt 0:00:57]} 45. Rf7+ {[%emt 0:00:21]} Ke4 {[%emt 0:00:06]} 46. Re7+ {[%emt 0:00:05]} Kd4 {[%emt 0:00:11]} 47. Rh7 {[%emt 0:00:51]} d5 {[%emt 0:00:28]} 48. Rh8 {[%emt 0:01:53]} Kd3 {[%emt 0:03:34]} 49. h5 {[%emt 0:02:32]} d4 {[%emt 0:00:08]} 50. h6 {[%emt 0:00:52]} Kd2 {[%emt 0:01:15]} 51. h7 {[%emt 0:00:08]} d3 {[%emt 0:00:01]} 52. Kg2 {[%emt 0:00:14]} Rh6 {[%emt 0:00:09]} 53. Kg3 {[%emt 0:00:17]} Rg6+ {[%emt 0:01:08]} 54. Kf4 {[%emt 0:00:08]} Rg7 {[%emt 0:00:07]} 55. Kf5 {[%emt 0:00:06]} Rd7 {[%emt 0:00:35]} 56. Kg6 {[%emt 0:00:07]} Kd1 {[%emt 0:00:31]} 57. Rf8 {[%emt 0:00:28]} Rxh7 {[%emt 0:00:05]} 58. Kxh7 {[%emt 0:00:09]} d2 {[%emt 0:00:01]} 59. Rd8 {[%emt 0:00:03]} Ke2 {[%emt 0:00:04]} 60. Rxd2+ {[%emt 0:00:05]} Kxd2 {[%emt 0:00:04]} 1/2-1/2

[Event "XIX Najdorf Memorial 2019"]
[Site "Warsaw"]
[Date "2019.07.09"]
[Round "4.13"]
[White "Jakubowski, Krzysztof"]
[Black "Hassan, Abdullah"]
[Result "1-0"]
[ECO "A11"]
[WhiteElo "2528"]
[BlackElo "2311"]
[Annotator "ChessBase"]
[PlyCount "115"]
[EventDate "2019.07.06"]
[EventType "swiss"]
[EventCountry "POL"]
[SourceTitle "playchess.com"]
[Source "ChessBase"]
[SourceQuality "1"]
[TimeControl "40/5400+30:1800+30"]

1. c4 {[%emt 0:00:00]} c6 {[%emt 0:21:07]} 2. Nf3 {[%emt 0:00:46]} d5 {[%emt 0:00:10]} 3. e3 {[%emt 0:00:13]} Nf6 {[%emt 0:00:12]} 4. Nc3 {[%emt 0:00:08]} e6 {[%emt 0:00:54]} 5. b3 {[%emt 0:00:15]} Nbd7 {[%emt 0:00:50]} 6. Bb2 {[%emt 0:00:11]} e5 {[%emt 0:00:29]} 7. cxd5 {[%emt 0:02:23]} cxd5 {[%emt 0:00:03]} 8. Rc1 {[%emt 0:00:08]} a6 {[%emt 0:00:16]} 9. Ne2 {[%emt 0:15:01]} Bd6 {[%emt 0:00:18]} 10. Ng3 {[%emt 0:00:06]} g6 {[%emt 0:00:38]} 11. h4 {[%emt 0:03:01]} h5 {[%emt 0:00:19]} 12. Ng5 {[%emt 0:05:38]} Nc5 {[%emt 0:06:49]} 13. d4 {[%emt 0:17:28]} Bg4 {[%emt 0:00:21]} 14. f3 {[%emt 0:05:32]} exd4 {[%emt 0:00:19]} 15. Ne2 {[%emt 0:00:12]} Bf5 {[%emt 0:05:42]} 16. Nxd4 {[%emt 0:06:16]} Bg3+ {[%emt 0:00:20]} 17. Kd2 {[%emt 0:03:14]} Qa5+ {[%emt 0:00:22]} 18. Rc3 {[%emt 0:01:08]} Be5 {[%emt 0:08:23]} 19. a3 {[%emt 0:11:48]} Bxd4 {[%emt 0:18:39]} 20. exd4 {[%emt 0:00:08]} Ne6 21. Bd3 {[%emt 0:02:01]} Bxd3 {[%emt 0:07:28]} 22. Nxe6 {[%emt 0:00:24]} fxe6 {[%emt 0:00:33]} 23. Kxd3 {[%emt 0:00:05]} O-O {[%emt 0:00:51]} 24. Qe1 {[%emt 0:04:55]} Qb6 {[%emt 0:00:09]} 25. Qg3 {[%emt 0:00:30]} Kg7 {[%emt 0:01:46]} 26. Rhc1 {[%emt 0:00:11]} Rf7 {[%emt 0:05:43]} 27. Kc2 {[%emt 0:02:58]} Rd8 {[%emt 0:00:47]} 28. Qe5 {[%emt 0:00:45]} Qd6 {[%emt 0:00:40]} 29. a4 {[%emt 0:01:56]} Qxe5 {[%emt 0:02:08]} 30. dxe5 {[%emt 0:00:05]} Ng8 {[%emt 0:00:21]} 31. Rd1 {[%emt 0:06:23]} Ne7 {[%emt 0:00:44]} 32. Bc1 {[%emt 0:00:15]} Nf5 {[%emt 0:10:55]} 33. Bg5 {[%emt 0:00:59]} Rdd7 {[%emt 0:00:20]} 34. Kd3 {[%emt 0:02:05]} d4 {[%emt 0:01:03]} 35. Rc8 {[%emt 0:01:31]} Ne3 {[%emt 0:01:36]} 36. Bf6+ {[%emt 0:03:15]} Rxf6 {[%emt 0:00:01]} 37. exf6+ {[%emt 0:00:06]} Kxf6 {[%emt 0:00:05]} 38. Rd2 {[%emt 0:00:40]} e5 {[%emt 0:02:02]} 39. Rf8+ {[%emt 0:01:46]} Ke7 {[%emt 0:04:25]} 40. Rb8 {[%emt 0:00:00]} Nf5 {[%emt 0:00:00]} 41. Re2 {[%emt 0:02:14]} Ne3 {[%emt 0:04:45]} 42. Rh8 {[%emt 0:03:07]} Kf6 {[%emt 0:03:19]} 43. g3 {[%emt 0:01:33]} Rc7 44. Rf8+ {[%emt 0:03:47]} Ke7 {[%emt 0:05:27]} 45. Rb8 {[%emt 0:00:23]} Kf6 {[%emt 0:09:49]} 46. f4 {[%emt 0:07:10]} exf4 {[%emt 0:05:28]} 47. Rf8+ {[%emt 0:01:33]} Kg7 {[%emt 0:00:33]} 48. Rxf4 {[%emt 0:00:06]} Nf5 {[%emt 0:00:55]} 49. Rc2 {[%emt 0:00:30]} Re7 {[%emt 0:00:15]} 50. Re4 {[%emt 0:00:41]} Rd7 {[%emt 0:00:55]} 51. g4 {[%emt 0:05:02]} hxg4 {[%emt 0:00:07]} 52. Rc8 {[%emt 0:00:58]} g3 {[%emt 0:00:19]} 53. Rg4 {[%emt 0:00:08]} Kf6 {[%emt 0:03:56]} 54. Rg8 {[%emt 0:00:50]} Ne7 {[%emt 0:00:13]} 55. Rf8+ {[%emt 0:00:23]} Kg7 {[%emt 0:00:13]} 56. Rf1 {[%emt 0:00:55]} Kh6 {[%emt 0:03:09]} 57. Rf7 {[%emt 0:06:38]} Rc7 {[%emt 0:00:43]} 58. Kd2 {[%emt 0:01:09]} 1-0